[Event "Titled Tuesday Blitz August 10 2021"]
[White "Ibarra Jerez, Jose Carlos"]
[Black "Shkapenko, Pavel"]
[WhiteFideId "2226332"]
[BlackFideId "4151933"]
[WhiteElo "2602"]
[BlackElo "2386"]
[Result "1-0"]
[Round "05"]
[TimeControl "180+1"]
[Date "2021.08.10"]
[WhiteClock "0:00:07"]
[BlackClock "0:00:09"]

1. e4 {[%clk 0:03:00]}  e5 {[%clk 0:02:59]} 2. Nf3 {[%clk 0:03:00]}  Nc6 {[%clk 0:02:59]} 3. d4 {[%clk 0:03:00]}  exd4 {[%clk 0:02:59]} 4. Nxd4 {[%clk 0:03:00]}  Bc5 {[%clk 0:02:59]} 5. Nb3 {[%clk 0:03:00]}  Bb6 {[%clk 0:02:59]} 6. Qe2 {[%clk 0:03:01]}  Nge7 {[%clk 0:02:59]} 7. Nc3 {[%clk 0:03:00]}  O-O {[%clk 0:02:59]} 8. Be3 {[%clk 0:02:59]}  f5 {[%clk 0:02:59]} 9. O-O-O {[%clk 0:02:55]}  f4 {[%clk 0:02:54]} 10. Bxb6 {[%clk 0:02:54]}  axb6 {[%clk 0:02:55]} 11. h4 {[%clk 0:02:42]}  d6 {[%clk 0:02:48]} 12. h5 {[%clk 0:02:39]}  h6 {[%clk 0:02:48]} 13. Kb1 {[%clk 0:02:27]}  Be6 {[%clk 0:02:46]} 14. f3 {[%clk 0:02:22]}  Kh8 {[%clk 0:02:43]} 15. Rg1 {[%clk 0:02:12]}  Qe8 {[%clk 0:02:36]} 16. Nb5 {[%clk 0:02:12]}  Qd7 {[%clk 0:02:32]} 17. g3 {[%clk 0:02:08]}  Ne5 {[%clk 0:02:31]} 18. gxf4 {[%clk 0:01:47]}  Rxf4 {[%clk 0:02:28]} 19. N5d4 {[%clk 0:01:47]}  Raf8 {[%clk 0:02:22]} 20. Nxe6 {[%clk 0:01:40]}  Qxe6 {[%clk 0:02:22]} 21. Nd4 {[%clk 0:01:41]}  Qf6 {[%clk 0:02:18]} 22. Bg2 {[%clk 0:01:29]}  N5c6 {[%clk 0:02:18]} 23. Nb5 {[%clk 0:01:26]}  Rc8 {[%clk 0:02:11]} 24. Bh3 {[%clk 0:01:25]}  Rg8 {[%clk 0:02:00]} 25. Bg4 {[%clk 0:01:12]}  Ne5 {[%clk 0:01:50]} 26. Nxc7 {[%clk 0:01:12]}  Nxf3 {[%clk 0:01:51]} 27. Bxf3 {[%clk 0:01:05]}  Rxf3 {[%clk 0:01:51]} 28. Nb5 {[%clk 0:01:00]}  Rf2 {[%clk 0:01:45]} 29. Qd3 {[%clk 0:00:58]}  Rc8 {[%clk 0:01:45]} 30. c3 {[%clk 0:00:50]}  Nc6 {[%clk 0:01:14]} 31. Nxd6 {[%clk 0:00:48]}  Ne5 {[%clk 0:01:13]} 32. Qb5 {[%clk 0:00:42]}  Rc6 {[%clk 0:01:12]} 33. Ne8 {[%clk 0:00:24]}  Qf4 {[%clk 0:01:02]} 34. Nxg7 {[%clk 0:00:16]}  Qxe4+ {[%clk 0:01:02]} 35. Ka1 {[%clk 0:00:16]}  Nc4 {[%clk 0:00:33]} 36. Rde1 {[%clk 0:00:16]}  Rxb2 {[%clk 0:00:25]} 37. Rxe4 {[%clk 0:00:14]}  Rxb5 {[%clk 0:00:25]} 38. Re8+ {[%clk 0:00:14]}  Kh7 {[%clk 0:00:25]} 39. Ne6 {[%clk 0:00:14]}  Rxe6 {[%clk 0:00:20]} 40. Rxe6 {[%clk 0:00:15]}  Na3 {[%clk 0:00:20]} 41. Re7+ {[%clk 0:00:15]}  Kh8 {[%clk 0:00:20]} 42. Re8+ {[%clk 0:00:15]}  Kh7 {[%clk 0:00:20]} 43. Re7+ {[%clk 0:00:16]}  Kh8 {[%clk 0:00:21]} 44. Re2 {[%clk 0:00:15]}  Rc5 {[%clk 0:00:17]} 45. Kb2 {[%clk 0:00:14]}  Nc4+ {[%clk 0:00:17]} 46. Kc2 {[%clk 0:00:12]}  Rxh5 {[%clk 0:00:16]} 47. Re8+ {[%clk 0:00:11]}  Kh7 {[%clk 0:00:16]} 48. Re7+ {[%clk 0:00:12]}  Kh8 {[%clk 0:00:16]} 49. Rd1 {[%clk 0:00:10]}  Rg5 {[%clk 0:00:15]} 50. Rd8+ {[%clk 0:00:09]}  Rg8 {[%clk 0:00:15]} 51. Rdd7 {[%clk 0:00:08]}  Ra8 {[%clk 0:00:15]} 52. Rh7+ {[%clk 0:00:08]}  Kg8 {[%clk 0:00:15]} 53. Rdg7+ {[%clk 0:00:09]}  Kf8 {[%clk 0:00:16]} 54. Rc7 {[%clk 0:00:09]}  Kg8 {[%clk 0:00:16]} 55. Rhg7+ {[%clk 0:00:08]}  Kh8 {[%clk 0:00:15]} 56. Rh7+ {[%clk 0:00:08]}  Kg8 {[%clk 0:00:15]} 57. Rhd7 {[%clk 0:00:08]}  Ne5 {[%clk 0:00:14]} 58. Rd5 {[%clk 0:00:07]}  Nc6 {[%clk 0:00:13]} 59. Rxb7 {[%clk 0:00:06]}  Rc8 {[%clk 0:00:13]} 60. Kb2 {[%clk 0:00:06]}  h5 {[%clk 0:00:09]} 61. Rxb6 {[%clk 0:00:06]}  Ne7 {[%clk 0:00:09]} 62. Rxh5 {[%clk 0:00:06]}  Kf7 {[%clk 0:00:09]} 63. Rh7+ {[%clk 0:00:06]}  Ke8 {[%clk 0:00:09]} 64. Rh8+ {[%clk 0:00:06]}  Kd7 {[%clk 0:00:09]} 65. Rxc8 {[%clk 0:00:06]}  Nxc8 {[%clk 0:00:10]} 66. Rb4 {[%clk 0:00:06]}  Ne7 {[%clk 0:00:09]} 67. Rb7+ {[%clk 0:00:06]}  Kd6 {[%clk 0:00:09]} 68. Rxe7 {[%clk 0:00:07]}  Kxe7 {[%clk 0:00:09]} 69. Kb3 {[%clk 0:00:07]} 1-0


[Site "https://www.chess.com"]

[Event "Titled Tuesday Blitz August 10 2021"]
[White "Jobava, Baadur"]
[Black "Bluebaum, Matthias"]
[WhiteFideId "13601520"]
[BlackFideId "24651516"]
[WhiteElo "2748"]
[BlackElo "2685"]
[Result "0-1"]
[Round "05"]
[TimeControl "180+1"]
[Date "2021.08.10"]
[WhiteClock "0:00:08"]
[BlackClock "0:00:52"]

1. e4 {[%clk 0:03:00]}  e6 {[%clk 0:02:59]} 2. c4 {[%clk 0:03:00]}  d5 {[%clk 0:03:00]} 3. cxd5 {[%clk 0:03:01]}  exd5 {[%clk 0:02:58]} 4. Qb3 {[%clk 0:03:01]}  dxe4 {[%clk 0:02:56]} 5. Bc4 {[%clk 0:03:01]}  Qd7 {[%clk 0:02:55]} 6. d3 {[%clk 0:02:59]}  Nc6 {[%clk 0:02:54]} 7. dxe4 {[%clk 0:02:56]}  Na5 {[%clk 0:02:53]} 8. Qc2 {[%clk 0:02:55]}  Nxc4 {[%clk 0:02:53]} 9. Qxc4 {[%clk 0:02:56]}  b5 {[%clk 0:02:54]} 10. Qc2 {[%clk 0:02:55]}  Bb7 {[%clk 0:02:54]} 11. Ne2 {[%clk 0:02:46]}  O-O-O {[%clk 0:02:53]} 12. O-O {[%clk 0:02:45]}  Qd3 {[%clk 0:02:52]} 13. Qxd3 {[%clk 0:02:45]}  Rxd3 {[%clk 0:02:53]} 14. Nbc3 {[%clk 0:02:38]}  b4 {[%clk 0:02:51]} 15. Nf4 {[%clk 0:02:38]}  Rd7 {[%clk 0:02:36]} 16. Ncd5 {[%clk 0:02:37]}  Bd6 {[%clk 0:02:28]} 17. a3 {[%clk 0:02:11]}  bxa3 {[%clk 0:02:08]} 18. bxa3 {[%clk 0:02:11]}  Ne7 {[%clk 0:02:07]} 19. Bb2 {[%clk 0:02:08]}  f6 {[%clk 0:02:04]} 20. Rfe1 {[%clk 0:01:36]}  Re8 {[%clk 0:01:55]} 21. Nh5 {[%clk 0:01:14]}  Nxd5 {[%clk 0:01:46]} 22. exd5 {[%clk 0:01:15]}  Rxe1+ {[%clk 0:01:46]} 23. Rxe1 {[%clk 0:01:14]}  Bxd5 {[%clk 0:01:46]} 24. Re8+ {[%clk 0:01:13]}  Kb7 {[%clk 0:01:45]} 25. Rh8 {[%clk 0:00:54]}  Bf7 {[%clk 0:01:36]} 26. g4 {[%clk 0:00:47]}  Bc5 {[%clk 0:01:28]} 27. Bc3 {[%clk 0:00:39]}  Bd5 {[%clk 0:01:23]} 28. Ng3 {[%clk 0:00:29]}  Bf3 {[%clk 0:01:23]} 29. h4 {[%clk 0:00:18]}  Rd1+ {[%clk 0:01:23]} 30. Kh2 {[%clk 0:00:18]}  Bxf2 {[%clk 0:00:56]} 31. Rxh7 {[%clk 0:00:16]}  Bc5 {[%clk 0:00:56]} 32. Rxg7 {[%clk 0:00:14]}  Bd6 {[%clk 0:00:57]} 33. Kh3 {[%clk 0:00:14]}  Rg1 {[%clk 0:00:57]} 34. h5 {[%clk 0:00:12]}  Rxg3+ {[%clk 0:00:54]} 35. Kh4 {[%clk 0:00:13]}  Rg2 {[%clk 0:00:51]} 36. Bxf6 {[%clk 0:00:12]}  Bf4 {[%clk 0:00:51]} 37. Kh3 {[%clk 0:00:08]}  Rh2# {[%clk 0:00:52]} 0-1


[Site "https://www.chess.com"]

[Event "Titled Tuesday Blitz August 10 2021"]
[White "Kovalev, Egor"]
[Black "Bok, Benjamin"]
[WhiteFideId "24124117"]
[BlackFideId "1017063"]
[WhiteElo "2253"]
[BlackElo "2658"]
[Result "0-1"]
[Round "05"]
[TimeControl "180+1"]
[Date "2021.08.10"]
[WhiteClock "0:00:10"]
[BlackClock "0:00:06"]

1. e4 {[%clk 0:03:00]}  c5 {[%clk 0:02:59]} 2. Nf3 {[%clk 0:02:59]}  d6 {[%clk 0:03:00]} 3. d4 {[%clk 0:02:59]}  cxd4 {[%clk 0:03:01]} 4. Nxd4 {[%clk 0:03:00]}  Nf6 {[%clk 0:03:02]} 5. Nc3 {[%clk 0:03:00]}  a6 {[%clk 0:03:02]} 6. f3 {[%clk 0:03:01]}  e5 {[%clk 0:03:00]} 7. Nb3 {[%clk 0:03:01]}  Be6 {[%clk 0:03:00]} 8. Be3 {[%clk 0:03:02]}  Nbd7 {[%clk 0:03:00]} 9. g4 {[%clk 0:03:01]}  b5 {[%clk 0:02:57]} 10. g5 {[%clk 0:02:59]}  b4 {[%clk 0:02:03]} 11. Ne2 {[%clk 0:02:56]}  Ng8 {[%clk 0:01:50]} 12. Qd2 {[%clk 0:02:29]}  h6 {[%clk 0:01:48]} 13. O-O-O {[%clk 0:02:09]}  a5 {[%clk 0:01:44]} 14. Kb1 {[%clk 0:02:02]}  hxg5 {[%clk 0:01:42]} 15. Bxg5 {[%clk 0:01:59]}  Qc7 {[%clk 0:01:40]} 16. Nbc1 {[%clk 0:01:36]}  Ngf6 {[%clk 0:01:35]} 17. Ng3 {[%clk 0:01:31]}  Rb8 {[%clk 0:01:20]} 18. f4 {[%clk 0:01:16]}  Be7 {[%clk 0:01:13]} 19. h4 {[%clk 0:01:08]}  a4 {[%clk 0:00:54]} 20. Bh3 {[%clk 0:00:55]}  Bxh3 {[%clk 0:00:44]} 21. Rxh3 {[%clk 0:00:56]}  g6 {[%clk 0:00:34]} 22. Rf1 {[%clk 0:00:46]}  Qc4 {[%clk 0:00:31]} 23. fxe5 {[%clk 0:00:36]}  dxe5 {[%clk 0:00:31]} 24. Rh2 {[%clk 0:00:26]}  Nh5 {[%clk 0:00:10]} 25. Bxe7 {[%clk 0:00:15]}  Nxg3 {[%clk 0:00:10]} 26. Rxf7 {[%clk 0:00:15]}  Qxf7 {[%clk 0:00:08]} 27. Bd6 {[%clk 0:00:14]}  Nf1 {[%clk 0:00:08]} 28. Qg2 {[%clk 0:00:09]}  Nxh2 {[%clk 0:00:06]} 29. Bxb8 {[%clk 0:00:09]}  Nxb8 {[%clk 0:00:06]} 30. Qxh2 {[%clk 0:00:09]}  Nd7 {[%clk 0:00:05]} 31. Qd2 {[%clk 0:00:09]}  Rxh4 {[%clk 0:00:04]} 32. b3 {[%clk 0:00:10]}  axb3 {[%clk 0:00:04]} 33. axb3 {[%clk 0:00:11]}  Rxe4 {[%clk 0:00:03]} 34. Kb2 {[%clk 0:00:11]}  Qf4 {[%clk 0:00:03]} 35. Qd5 {[%clk 0:00:10]}  Rd4 {[%clk 0:00:03]} 36. Qe6+ {[%clk 0:00:10]}  Kd8 {[%clk 0:00:03]} 37. Nd3 {[%clk 0:00:11]}  Rxd3 {[%clk 0:00:03]} 38. Qg8+ {[%clk 0:00:12]}  Kc7 {[%clk 0:00:03]} 39. cxd3 {[%clk 0:00:13]}  Qd2+ {[%clk 0:00:03]} 40. Ka1 {[%clk 0:00:12]}  Qc1+ {[%clk 0:00:03]} 41. Ka2 {[%clk 0:00:12]}  Qc2+ {[%clk 0:00:03]} 42. Ka1 {[%clk 0:00:13]}  Qxd3 {[%clk 0:00:04]} 43. Qe6 {[%clk 0:00:12]}  g5 {[%clk 0:00:03]} 44. Ka2 {[%clk 0:00:12]}  Qd4 {[%clk 0:00:03]} 45. Qg6 {[%clk 0:00:11]}  g4 {[%clk 0:00:03]} 46. Qc2+ {[%clk 0:00:10]}  Kd8 {[%clk 0:00:03]} 47. Qg6 {[%clk 0:00:10]}  Qf2+ {[%clk 0:00:04]} 48. Ka1 {[%clk 0:00:10]}  g3 {[%clk 0:00:05]} 49. Qg8+ {[%clk 0:00:09]}  Kc7 {[%clk 0:00:05]} 50. Qc4+ {[%clk 0:00:10]}  Kd6 {[%clk 0:00:06]} 51. Qa6+ {[%clk 0:00:10]}  Ke7 {[%clk 0:00:06]} 0-1


[Site "https://www.chess.com"]

[Event "Titled Tuesday Blitz August 10 2021"]
[White "Maghsoodloo, Parham"]
[Black "Timofeev, Artyom"]
[WhiteFideId "12539929"]
[BlackFideId "4140419"]
[WhiteElo "2601"]
[BlackElo "2582"]
[Result "1/2-1/2"]
[Round "05"]
[TimeControl "180+1"]
[Date "2021.08.10"]
[WhiteClock "0:00:04"]
[BlackClock "0:00:10"]

1. d4 {[%clk 0:03:00]}  Nf6 {[%clk 0:02:59]} 2. c4 {[%clk 0:02:58]}  b6 {[%clk 0:02:58]} 3. Nf3 {[%clk 0:02:58]}  Bb7 {[%clk 0:02:58]} 4. g3 {[%clk 0:02:57]}  g6 {[%clk 0:02:58]} 5. Bg2 {[%clk 0:02:58]}  Bg7 {[%clk 0:02:58]} 6. O-O {[%clk 0:02:58]}  O-O {[%clk 0:02:58]} 7. b3 {[%clk 0:02:58]}  d5 {[%clk 0:02:53]} 8. Bb2 {[%clk 0:02:55]}  dxc4 {[%clk 0:02:47]} 9. bxc4 {[%clk 0:02:55]}  Nbd7 {[%clk 0:02:47]} 10. a4 {[%clk 0:02:44]}  e6 {[%clk 0:02:43]} 11. a5 {[%clk 0:02:42]}  c5 {[%clk 0:02:43]} 12. a6 {[%clk 0:02:38]}  Bc6 {[%clk 0:02:41]} 13. e3 {[%clk 0:02:37]}  cxd4 {[%clk 0:02:39]} 14. exd4 {[%clk 0:02:36]}  Rc8 {[%clk 0:02:38]} 15. Qe2 {[%clk 0:02:30]}  Re8 {[%clk 0:02:29]} 16. Na3 {[%clk 0:02:20]}  Qc7 {[%clk 0:02:29]} 17. Rfc1 {[%clk 0:02:04]}  Qb8 {[%clk 0:02:27]} 18. Nb5 {[%clk 0:02:04]}  Red8 {[%clk 0:02:25]} 19. Ba3 {[%clk 0:01:56]}  Bf8 {[%clk 0:02:19]} 20. Bxf8 {[%clk 0:01:55]}  Nxf8 {[%clk 0:02:16]} 21. Qe5 {[%clk 0:01:53]}  Bxb5 {[%clk 0:01:59]} 22. Qxf6 {[%clk 0:01:40]}  Be8 {[%clk 0:01:57]} 23. h4 {[%clk 0:01:32]}  Nd7 {[%clk 0:01:40]} 24. Qe7 {[%clk 0:01:32]}  Qc7 {[%clk 0:01:21]} 25. h5 {[%clk 0:01:28]}  Nb8 {[%clk 0:01:21]} 26. Qh4 {[%clk 0:01:17]}  Nd7 {[%clk 0:00:58]} 27. Re1 {[%clk 0:00:36]}  Qd6 {[%clk 0:00:54]} 28. d5 {[%clk 0:00:31]}  exd5 {[%clk 0:00:47]} 29. cxd5 {[%clk 0:00:31]}  Qf6 {[%clk 0:00:45]} 30. Qb4 {[%clk 0:00:14]}  Nc5 {[%clk 0:00:42]} 31. Ne5 {[%clk 0:00:15]}  gxh5 {[%clk 0:00:39]} 32. Rad1 {[%clk 0:00:14]}  Bd7 {[%clk 0:00:38]} 33. d6 {[%clk 0:00:14]}  Bf5 {[%clk 0:00:27]} 34. Qf4 {[%clk 0:00:12]}  Kg7 {[%clk 0:00:27]} 35. Nc6 {[%clk 0:00:09]}  Rxc6 {[%clk 0:00:27]} 36. Bxc6 {[%clk 0:00:09]}  Nd3 {[%clk 0:00:27]} 37. Rxd3 {[%clk 0:00:08]}  Bxd3 {[%clk 0:00:27]} 38. d7 {[%clk 0:00:03]}  Qxf4 {[%clk 0:00:15]} 39. gxf4 {[%clk 0:00:03]}  Bf5 {[%clk 0:00:16]} 40. Re8 {[%clk 0:00:03]}  Bxd7 {[%clk 0:00:16]} 41. Rxd8 {[%clk 0:00:02]}  Bxc6 {[%clk 0:00:16]} 42. Rc8 {[%clk 0:00:02]}  Bb5 {[%clk 0:00:16]} 43. Rc7 {[%clk 0:00:02]}  Bxa6 {[%clk 0:00:17]} 44. Rxa7 {[%clk 0:00:03]}  Bc4 {[%clk 0:00:16]} 45. Rb7 {[%clk 0:00:03]}  b5 {[%clk 0:00:17]} 46. Rb6 {[%clk 0:00:03]}  f6 {[%clk 0:00:17]} 47. f5 {[%clk 0:00:03]}  Bd3 {[%clk 0:00:16]} 48. Kg2 {[%clk 0:00:02]}  Bxf5 {[%clk 0:00:16]} 49. Rxb5 {[%clk 0:00:02]}  Kg6 {[%clk 0:00:17]} 50. Kg3 {[%clk 0:00:03]}  Be6 {[%clk 0:00:17]} 51. Kh4 {[%clk 0:00:03]}  Bg4 {[%clk 0:00:18]} 52. f4 {[%clk 0:00:02]}  Kh6 {[%clk 0:00:15]} 53. Rc5 {[%clk 0:00:01]}  Kg6 {[%clk 0:00:15]} 54. Rb5 {[%clk 0:00:02]}  Kh6 {[%clk 0:00:16]} 55. f5 {[%clk 0:00:02]}  Kg7 {[%clk 0:00:13]} 56. Kg3 {[%clk 0:00:03]}  Kf7 {[%clk 0:00:10]} 57. Kf4 {[%clk 0:00:02]}  Kg8 {[%clk 0:00:11]} 58. Rb7 {[%clk 0:00:02]}  h6 {[%clk 0:00:10]} 59. Re7 {[%clk 0:00:02]}  Kf8 {[%clk 0:00:10]} 60. Rh7 {[%clk 0:00:01]}  Kg8 {[%clk 0:00:11]} 61. Re7 {[%clk 0:00:02]}  Kf8 {[%clk 0:00:11]} 62. Rc7 {[%clk 0:00:02]}  Kg8 {[%clk 0:00:11]} 63. Ra7 {[%clk 0:00:02]}  Kf8 {[%clk 0:00:12]} 64. Rh7 {[%clk 0:00:02]}  Kg8 {[%clk 0:00:12]} 65. Rxh6 {[%clk 0:00:02]}  Kg7 {[%clk 0:00:13]} 66. Rg6+ {[%clk 0:00:03]}  Kf7 {[%clk 0:00:13]} 67. Ke4 {[%clk 0:00:03]}  Bd1 {[%clk 0:00:05]} 68. Rg1 {[%clk 0:00:03]}  Bg4 {[%clk 0:00:05]} 69. Kf4 {[%clk 0:00:03]}  Be2 {[%clk 0:00:05]} 70. Ra1 {[%clk 0:00:03]}  Bg4 {[%clk 0:00:05]} 71. Ra7+ {[%clk 0:00:04]}  Kf8 {[%clk 0:00:05]} 72. Ke4 {[%clk 0:00:04]}  Kg8 {[%clk 0:00:06]} 73. Rd7 {[%clk 0:00:04]}  Kf8 {[%clk 0:00:06]} 74. Kf4 {[%clk 0:00:04]}  Kg8 {[%clk 0:00:06]} 75. Rd3 {[%clk 0:00:04]}  Kf8 {[%clk 0:00:06]} 76. Re3 {[%clk 0:00:05]}  Kf7 {[%clk 0:00:06]} 77. Re6 {[%clk 0:00:05]}  Kg7 {[%clk 0:00:07]} 78. Re7+ {[%clk 0:00:05]}  Kf8 {[%clk 0:00:07]} 79. Ra7 {[%clk 0:00:04]}  Kg8 {[%clk 0:00:07]} 80. Ke4 {[%clk 0:00:05]}  Kf8 {[%clk 0:00:08]} 81. Ra3 {[%clk 0:00:05]}  Kf7 {[%clk 0:00:08]} 82. Ra2 {[%clk 0:00:04]}  Kf8 {[%clk 0:00:08]} 83. Rf2 {[%clk 0:00:05]}  Kf7 {[%clk 0:00:08]} 84. Kd5 {[%clk 0:00:05]}  Ke7 {[%clk 0:00:08]} 85. Kd4 {[%clk 0:00:04]}  Kf7 {[%clk 0:00:08]} 86. Ke4 {[%clk 0:00:04]}  Ke7 {[%clk 0:00:08]} 87. Ra2 {[%clk 0:00:04]}  Kf7 {[%clk 0:00:09]} 88. Ra8 {[%clk 0:00:04]}  Ke7 {[%clk 0:00:08]} 89. Rh8 {[%clk 0:00:03]}  Kf7 {[%clk 0:00:08]} 90. Rh7+ {[%clk 0:00:04]}  Kg8 {[%clk 0:00:08]} 91. Rb7 {[%clk 0:00:04]}  Kf8 {[%clk 0:00:09]} 92. Kf4 {[%clk 0:00:04]}  Kg8 {[%clk 0:00:09]} 93. Rd7 {[%clk 0:00:04]}  Kf8 {[%clk 0:00:09]} 94. Rh7 {[%clk 0:00:03]}  Kg8 {[%clk 0:00:10]} 95. Ra7 {[%clk 0:00:03]}  Kf8 {[%clk 0:00:10]} 96. Ke4 {[%clk 0:00:03]}  Kg8 {[%clk 0:00:10]} 97. Ra5 {[%clk 0:00:04]}  Kf7 {[%clk 0:00:10]} 98. Rb5 {[%clk 0:00:04]}  Ke7 {[%clk 0:00:10]} 99. Rb4 {[%clk 0:00:02]}  Kf7 {[%clk 0:00:10]} 100. Rb2 {[%clk 0:00:02]}  Ke7 {[%clk 0:00:11]} 101. Rh2 {[%clk 0:00:03]}  Kf7 {[%clk 0:00:11]} 102. Kd5 {[%clk 0:00:04]}  Bxf5 {[%clk 0:00:10]} 103. Rxh5 {[%clk 0:00:04]}  Kg6 {[%clk 0:00:11]} 104. Rh1 {[%clk 0:00:03]}  Bg4 {[%clk 0:00:11]} 105. Ke4 {[%clk 0:00:03]}  f5+ {[%clk 0:00:12]} 106. Ke5 {[%clk 0:00:03]}  Kg5 {[%clk 0:00:12]} 107. Rh8 {[%clk 0:00:04]}  Kg6 {[%clk 0:00:12]} 108. Rg8+ {[%clk 0:00:04]}  Kf7 {[%clk 0:00:13]} 109. Rg5 {[%clk 0:00:03]}  Bh3 {[%clk 0:00:12]} 110. Rh5 {[%clk 0:00:03]}  Bg4 {[%clk 0:00:12]} 111. Rh6 {[%clk 0:00:04]}  Kg7 {[%clk 0:00:12]} 112. Rf6 {[%clk 0:00:04]}  Bh3 {[%clk 0:00:11]} 113. Rd6 {[%clk 0:00:03]}  Bg4 {[%clk 0:00:12]} 114. Kf4 {[%clk 0:00:03]}  Kf7 {[%clk 0:00:12]} 115. Ke5 {[%clk 0:00:03]}  Kg7 {[%clk 0:00:12]} 116. Rd3 {[%clk 0:00:04]}  Kf7 {[%clk 0:00:13]} 117. Rd7+ {[%clk 0:00:04]}  Kg6 {[%clk 0:00:13]} 118. Rc7 {[%clk 0:00:03]}  Bh3 {[%clk 0:00:12]} 119. Rc8 {[%clk 0:00:03]}  Bg4 {[%clk 0:00:12]} 120. Rc7 {[%clk 0:00:04]}  Bh3 {[%clk 0:00:11]} 121. Ra7 {[%clk 0:00:04]}  Bg4 {[%clk 0:00:11]} 122. Ra8 {[%clk 0:00:05]}  Bh3 {[%clk 0:00:11]} 123. Rh8 {[%clk 0:00:04]}  Bg4 {[%clk 0:00:10]} 124. Ke6 {[%clk 0:00:04]}  Kg5 {[%clk 0:00:10]} 125. Ke5 {[%clk 0:00:04]}  Kg6 {[%clk 0:00:10]} 1/2-1/2


[Site "https://www.chess.com"]

[Event "Titled Tuesday Blitz August 10 2021"]
[White "Moroni, Luca Jr"]
[Black "Zhigalko, Sergei"]
[WhiteFideId "865834"]
[BlackFideId "13502956"]
[WhiteElo "2491"]
[BlackElo "2662"]
[Result "1-0"]
[Round "05"]
[TimeControl "180+1"]
[Date "2021.08.10"]
[WhiteClock "0:00:06"]
[BlackClock "0:00:02"]

1. d4 {[%clk 0:03:00]}  Nf6 {[%clk 0:02:59]} 2. c4 {[%clk 0:03:01]}  e6 {[%clk 0:03:00]} 3. Nc3 {[%clk 0:03:01]}  Bb4 {[%clk 0:03:00]} 4. Nf3 {[%clk 0:03:01]}  b6 {[%clk 0:03:00]} 5. Qb3 {[%clk 0:03:00]}  a5 {[%clk 0:02:57]} 6. g3 {[%clk 0:02:57]}  Bb7 {[%clk 0:02:56]} 7. Bg2 {[%clk 0:02:56]}  O-O {[%clk 0:02:56]} 8. O-O {[%clk 0:02:54]}  Re8 {[%clk 0:02:56]} 9. a3 {[%clk 0:02:51]}  Bxc3 {[%clk 0:02:56]} 10. Qxc3 {[%clk 0:02:51]}  a4 {[%clk 0:02:57]} 11. Bf4 {[%clk 0:02:47]}  d6 {[%clk 0:02:57]} 12. c5 {[%clk 0:02:35]}  bxc5 {[%clk 0:02:38]} 13. dxc5 {[%clk 0:02:36]}  Ne4 {[%clk 0:02:38]} 14. Qc2 {[%clk 0:02:21]}  Nxc5 {[%clk 0:02:31]} 15. Ng5 {[%clk 0:02:12]}  f5 {[%clk 0:02:26]} 16. Bxb7 {[%clk 0:02:03]}  Nxb7 {[%clk 0:02:27]} 17. e4 {[%clk 0:01:49]}  h6 {[%clk 0:02:11]} 18. Nf3 {[%clk 0:01:50]}  Qf6 {[%clk 0:01:14]} 19. Qxc7 {[%clk 0:01:31]}  Nc5 {[%clk 0:00:56]} 20. e5 {[%clk 0:01:21]}  Qf7 {[%clk 0:00:52]} 21. Qxf7+ {[%clk 0:01:09]}  Kxf7 {[%clk 0:00:52]} 22. exd6 {[%clk 0:01:09]}  Nbd7 {[%clk 0:00:53]} 23. Rac1 {[%clk 0:01:04]}  Rec8 {[%clk 0:00:47]} 24. Rc4 {[%clk 0:00:52]}  Nd3 {[%clk 0:00:42]} 25. Rc7 {[%clk 0:00:51]}  Rxc7 {[%clk 0:00:42]} 26. dxc7 {[%clk 0:00:51]}  e5 {[%clk 0:00:43]} 27. Rd1 {[%clk 0:00:36]}  e4 {[%clk 0:00:39]} 28. Ne1 {[%clk 0:00:35]}  N7c5 {[%clk 0:00:37]} 29. Nxd3 {[%clk 0:00:27]}  Nxd3 {[%clk 0:00:38]} 30. Rd2 {[%clk 0:00:25]}  g5 {[%clk 0:00:27]} 31. Be3 {[%clk 0:00:25]}  Rc8 {[%clk 0:00:21]} 32. Bb6 {[%clk 0:00:23]}  Ke6 {[%clk 0:00:18]} 33. g4 {[%clk 0:00:23]}  fxg4 {[%clk 0:00:07]} 34. Rc2 {[%clk 0:00:22]}  Kd5 {[%clk 0:00:07]} 35. Kf1 {[%clk 0:00:16]}  h5 {[%clk 0:00:08]} 36. Rc3 {[%clk 0:00:14]}  Nxb2 {[%clk 0:00:04]} 37. Rc5+ {[%clk 0:00:13]}  Kd6 {[%clk 0:00:03]} 38. Rxg5 {[%clk 0:00:14]}  Nc4 {[%clk 0:00:03]} 39. Ba5 {[%clk 0:00:04]}  Nxa5 {[%clk 0:00:02]} 40. Rxa5 {[%clk 0:00:05]}  Rxc7 {[%clk 0:00:02]} 41. Rxa4 {[%clk 0:00:06]}  Kd5 {[%clk 0:00:02]} 42. Ra5+ {[%clk 0:00:06]}  Rc5 {[%clk 0:00:02]} 43. Rxc5+ {[%clk 0:00:05]}  Kxc5 {[%clk 0:00:03]} 44. Ke2 {[%clk 0:00:06]}  Kd4 {[%clk 0:00:01]} 45. a4 {[%clk 0:00:06]}  h4 {[%clk 0:00:02]} 46. a5 {[%clk 0:00:06]} 1-0


[Site "https://www.chess.com"]

[Event "Titled Tuesday Blitz August 10 2021"]
[White "Nakamura, Hikaru"]
[Black "Solon, Nathan"]
[WhiteFideId "2016192"]
[BlackFideId "2017229"]
[WhiteElo "2900"]
[BlackElo "2660"]
[Result "1-0"]
[Round "05"]
[TimeControl "180+1"]
[Date "2021.08.10"]
[WhiteClock "0:01:22"]
[BlackClock "0:00:12"]

1. e4 {[%clk 0:03:00]}  c6 {[%clk 0:02:59]} 2. Nf3 {[%clk 0:02:59]}  d5 {[%clk 0:02:59]} 3. Nc3 {[%clk 0:03:00]}  Bg4 {[%clk 0:02:59]} 4. h3 {[%clk 0:03:00]}  Bxf3 {[%clk 0:02:58]} 5. Qxf3 {[%clk 0:03:01]}  e6 {[%clk 0:02:59]} 6. d4 {[%clk 0:03:00]}  Nf6 {[%clk 0:02:44]} 7. exd5 {[%clk 0:02:44]}  exd5 {[%clk 0:02:42]} 8. Bd3 {[%clk 0:02:42]}  Bd6 {[%clk 0:02:37]} 9. Bg5 {[%clk 0:02:41]}  Nbd7 {[%clk 0:02:35]} 10. O-O-O {[%clk 0:02:40]}  O-O {[%clk 0:02:34]} 11. g4 {[%clk 0:02:37]}  b5 {[%clk 0:02:31]} 12. Kb1 {[%clk 0:02:36]}  b4 {[%clk 0:02:26]} 13. Ne2 {[%clk 0:02:31]}  a5 {[%clk 0:02:25]} 14. Ng3 {[%clk 0:02:30]}  Re8 {[%clk 0:02:09]} 15. Nf5 {[%clk 0:02:30]}  Bf8 {[%clk 0:02:08]} 16. h4 {[%clk 0:02:28]}  a4 {[%clk 0:02:02]} 17. Rhe1 {[%clk 0:02:25]}  Rxe1 {[%clk 0:01:54]} 18. Rxe1 {[%clk 0:02:26]}  b3 {[%clk 0:01:55]} 19. a3 {[%clk 0:02:05]}  bxc2+ {[%clk 0:01:54]} 20. Bxc2 {[%clk 0:02:06]}  Qb6 {[%clk 0:01:21]} 21. Bc1 {[%clk 0:02:03]}  Rb8 {[%clk 0:01:06]} 22. g5 {[%clk 0:01:38]}  Ne4 {[%clk 0:01:06]} 23. Bxe4 {[%clk 0:01:39]}  dxe4 {[%clk 0:01:06]} 24. Rxe4 {[%clk 0:01:39]}  c5 {[%clk 0:01:00]} 25. Ne7+ {[%clk 0:01:31]}  Bxe7 {[%clk 0:00:51]} 26. Rxe7 {[%clk 0:01:31]}  Qg6+ {[%clk 0:00:42]} 27. Qe4 {[%clk 0:01:31]}  Nf8 {[%clk 0:00:36]} 28. dxc5 {[%clk 0:01:24]}  Ne6 {[%clk 0:00:18]} 29. Qxg6 {[%clk 0:01:23]}  hxg6 {[%clk 0:00:19]} 30. Be3 {[%clk 0:01:22]}  Rc8 {[%clk 0:00:14]} 31. Ra7 {[%clk 0:01:22]}  Nxc5 {[%clk 0:00:14]} 32. Bxc5 {[%clk 0:01:22]}  Rxc5 {[%clk 0:00:15]} 33. Rxa4 {[%clk 0:01:22]}  Rf5 {[%clk 0:00:12]} 34. f4 {[%clk 0:01:22]} 1-0


[Site "https://www.chess.com"]